bitfinex/quotes_ETHUSD_20251122
["timestamp","ask_amount","ask_price","bid_price","bid_amount"]
[1763821675746,0.125,2752.2,2751.7,0.58099999]
[1763821675942,0.125,2752.1,2751.7,0.58099999]
[1763821677481,0.4579,2752.4,2751.7,0.58099999]
[1763821677685,0.0912,2751.8,2751.7,0.10099999]
[1763821677883,0.2532,2751.8,2751.7,0.001]
[1763821678977,0.7081,2751.8,2751.7,0.001]
[1763821679696,1.113604,2751.8,2751.7,0.001]
[1763821681953,0.90699264,2751.6,2751.4,0.001]
[1763821682150,0.70742786,2751.5,2751.4,0.001]
[1763821682401,0.0919,2751.5,2751.4,0.001]
[1763821682687,0.5461,2751.5,2751.4,0.001]
[1763821683088,1.076604,2751.5,2751.4,0.001]
[1763821683464,0.2169,2751.5,2751.4,0.001]
[1763821684153,0.6711,2751.5,2751.4,0.001]
[1763821684484,0.2169,2751.5,2751.4,0.001]
[1763821685981,0.125,2751.5,2751.4,0.4518]
[1763821686492,0.125,2751.5,2751.4,0.913]
[1763821686989,0.125,2751.5,2751.4,1.01299999]
[1763821687354,0.125,2751.5,2751.4,0.913]
[1763821687554,0.125,2751.5,2751.4,1.01299999]
[1763821688703,0.125,2751.5,2751.4,1.11299999]
[1763821689217,0.125,2751.5,2751.4,4.74751332]
[1763821689375,0.125,2751.5,2751.4,5.58573843]
[1763821693014,0.002,2752.0,2751.4,5.58573843]
[1763821693220,0.002,2752.0,2751.9,0.4508]
[1763821693717,0.002,2752.0,2751.9,0.912]
[1763821695117,0.002,2752.0,2751.9,0.4508]
[1763821695332,0.002,2752.0,2751.9,0.912]
[1763821695485,0.002,2752.0,2751.9,1.11199999]
[1763821695685,0.002,2752.0,2751.9,1.01199999]
[1763821696021,0.002,2752.0,2751.9,0.55079999]
[1763821696633,0.002,2752.0,2751.9,1.01199999]
[1763821696803,0.002,2752.0,2751.9,0.912]
[1763821697008,0.002,2752.0,2751.9,1.01199999]
[1763821697212,0.002,2752.0,2751.9,1.11199999]
[1763821697412,0.002,2752.0,2751.9,1.58660731]
[1763821698018,0.002,2752.0,2751.9,0.55079999]
[1763821698313,0.002,2752.0,2751.9,0.4508]
[1763821698508,0.002,2752.0,2751.4,0.001]
[1763821698712,0.054,2752.0,2751.4,0.4622]
[1763821700544,0.1627,2751.9,2751.4,0.10099999]
[1763821700699,0.1627,2751.9,2751.4,0.001]
[1763821700700,0.0564,2751.5,2751.4,0.001]
[1763821701111,0.545,2751.5,2751.4,0.001]
[1763821702216,0.950504,2751.5,2751.4,0.001]
[1763821702416,0.545,2751.5,2751.4,0.001]
[1763821703447,0.950504,2751.5,2751.4,0.001]
[1763821703601,2.20791858,2751.5,2751.4,0.001]
[1763821703803,5.31429022,2751.5,2751.4,0.001]
[1763821704110,1.31249664,2751.4,2751.1,0.001]
[1763821704311,0.95899264,2751.2,2751.1,0.001]
[1763821704747,1.85749664,2751.2,2751.1,0.001]
[1763821704947,2.59769227,2751.2,2751.1,0.001]
[1763821705144,0.405504,2751.1,2750.8,0.001]
[1763821705349,0.2147,2750.9,2750.8,0.001]
[1763821705512,0.620204,2750.9,2750.8,0.001]
[1763821705714,1.113204,2750.9,2750.8,0.001]
[1763821706955,0.2147,2750.9,2750.8,0.001]
[1763821707246,0.8327,2750.9,2750.8,0.001]
[1763821707738,0.177,2750.9,2750.8,0.001]
[1763821707910,0.67,2750.9,2750.8,0.001]
[1763821708112,0.177,2750.9,2750.8,0.001]
[1763821708551,0.125,2750.9,2750.8,0.001]
[1763821709151,0.125,2750.9,2750.8,0.913]
[1763821709548,0.125,2750.9,2750.8,0.001]
[1763821709757,0.177,2750.9,2750.8,0.001]
[1763821709914,0.67,2750.9,2750.8,0.001]
[1763821710117,0.177,2750.9,2750.8,0.001]
[1763821710616,0.67,2750.9,2750.8,0.001]
[1763821712364,1.075504,2750.9,2750.8,0.001]
[1763821713327,0.582504,2750.9,2750.8,0.001]
[1763821713956,1.075504,2750.9,2750.8,0.001]
[1763821716175,0.177,2750.9,2750.8,0.001]
[1763821716486,0.6549,2750.9,2750.8,0.001]
[1763821717539,1.060404,2750.9,2750.8,0.001]
[1763821718551,0.176,2750.9,2750.8,0.001]
[1763821718770,0.052,2750.9,2750.8,0.001]
[1763821719075,0.176,2750.9,2750.8,0.001]
[1763821722580,0.66,2750.9,2750.8,0.001]
[1763821724797,1.065504,2750.9,2750.8,0.001]
[1763821726595,0.581504,2750.9,2750.8,0.001]
[1763821726794,1.065504,2750.9,2750.8,0.001]
[1763821727158,0.405504,2750.8,2750.5,0.001]
[1763821727381,1.32629664,2750.6,2750.5,0.001]
[1763821727787,1.81029664,2750.6,2750.5,0.001]
[1763821727976,1.93429664,2750.6,2750.5,0.001]
[1763821728177,0.1378,2750.6,2750.5,0.001]
[1763821728583,0.124,2750.6,2750.5,0.001]
[1763821728972,0.1893,2750.6,2750.5,0.001]
[1763821729386,1.074604,2750.6,2750.5,0.001]
[1763821734198,0.594804,2750.6,2750.5,0.001]
[1763821734399,0.599004,2750.6,2750.5,0.001]
[1763821734597,1.074704,2750.6,2750.5,0.001]
[1763821736783,0.599004,2750.6,2750.5,0.001]
[1763821736980,1.03404739,2750.6,2750.5,0.001]
[1763821738670,0.91004739,2750.6,2750.5,0.001]
[1763821738876,1.03404739,2750.6,2750.5,0.001]
[1763821739404,1.50974739,2750.6,2750.5,0.001]
[1763821739609,2.41674003,2750.6,2750.5,0.001]
[1763821740308,9.0400082,2750.6,2750.5,0.001]
[1763821740885,4.74748903,2750.6,2750.5,0.001]
[1763821741088,5.59030603,2750.6,2750.5,0.001]
[1763821741307,2.41674003,2750.6,2750.5,0.001]
[1763821741812,1.81704003,2750.6,2750.5,0.001]
[1763821742111,2.41674003,2750.6,2750.5,0.001]
[1763821743307,2.9578293,2750.6,2750.5,0.001]
[1763821744809,6.97887645,2750.6,2750.5,0.001]
[1763821746315,16.77950745,2750.6,2750.5,0.001]
[1763821746613,15.96950745,2750.6,2750.5,0.001]
[1763821746808,11.31872145,2750.6,2750.5,0.001]
[1763821747324,31.96781445,2750.6,2750.5,0.001]
[1763821748711,31.84381445,2750.6,2750.5,0.001]
[1763821749015,5.96208718,2750.6,2750.5,0.001]
[1763821749528,6.14908718,2750.6,2750.5,0.001]
[1763821749725,6.71963385,2750.6,2750.5,0.001]
[1763821749911,2.1690827,2750.6,2750.5,0.001]
[1763821750226,2.1690827,2750.6,2750.5,0.4825]
[1763821750227,1.43649664,2750.6,2750.5,0.4825]
[1763821750420,1.31249664,2750.6,2750.5,0.4825]
[1763821750619,0.529504,2750.6,2750.5,0.4825]
[1763821751027,0.124,2750.6,2750.5,0.4825]
[1763821751928,0.405504,2750.7,2750.5,0.4825]
[1763821752097,0.405504,2750.7,2750.6,0.9499]
[1763821752297,0.124,2750.7,2750.6,0.9499]
[1763821754029,0.002,2750.8,2750.6,0.9499]
[1763821754334,0.124,2750.7,2750.5,0.001]
[1763821754809,0.124,2750.7,2750.6,0.9499]
[1763821756409,1.0739,2750.7,2750.6,0.9499]
[1763821756613,0.124,2750.7,2750.6,0.9499]
[1763821757836,0.405504,2750.6,2750.5,0.001]
[1763821758022,5.63971345,2750.6,2750.5,0.001]
[1763821758227,6.12321345,2750.6,2750.5,0.001]
[1763821758539,10.48622972,2750.6,2750.5,0.001]
[1763821758835,2.64325557,2750.6,2750.5,0.001]
[1763821759036,8.74563657,2750.6,2750.5,0.001]
[1763821759211,6.19554136,2750.6,2750.5,0.001]
[1763821759412,5.13200257,2750.6,2750.5,0.001]
[1763821760638,5.53077357,2750.6,2750.5,0.001]
[1763821761408,6.03895436,2750.6,2750.5,0.001]
[1763821761624,24.79325836,2750.6,2750.5,0.001]
[1763821762557,20.46478136,2750.6,2750.5,0.001]
[1763821762857,18.10479036,2750.6,2750.5,0.001]
[1763821763360,16.86778136,2750.6,2750.5,0.001]
[1763821764763,19.84841336,2750.6,2750.5,0.001]
[1763821764927,19.99420056,2750.6,2750.5,0.001]
[1763821765759,28.28616156,2750.6,2750.5,0.001]
[1763821766274,13.31287156,2750.6,2750.5,0.001]
[1763821766575,11.52913156,2750.6,2750.5,0.001]
[1763821766871,11.71763156,2750.6,2750.5,0.001]
[1763821767539,10.21703956,2750.6,2750.5,0.001]
[1763821767742,6.77866477,2750.6,2750.5,0.001]
[1763821767968,6.89666477,2750.6,2750.5,0.001]
[1763821768885,7.13466477,2750.6,2750.5,0.001]
[1763821769396,6.75966477,2750.6,2750.5,0.001]
[1763821769582,6.51166477,2750.6,2750.5,0.001]
[1763821770196,7.51962277,2750.6,2750.5,0.001]
[1763821770698,6.88062277,2750.6,2750.5,0.001]
[1763821770892,6.64262277,2750.6,2750.5,0.001]
[1763821771091,5.91362277,2750.6,2750.5,0.001]
[1763821771795,5.30612277,2750.6,2750.5,0.001]
[1763821771969,1.7644535,2750.6,2750.5,0.001]
[1763821772296,4.6340055,2750.6,2750.5,0.001]
[1763821775302,4.3814185,2750.6,2750.5,0.001]
[1763821776494,5.39210777,2750.6,2750.5,0.001]
[1763821776877,4.92250777,2750.6,2750.5,0.001]
[1763821778602,4.73690777,2750.6,2750.5,0.4842]
[1763821778803,9.3390342,2750.6,2750.5,0.001]
[1763821779098,8.79794493,2750.6,2750.5,0.001]
[1763821779303,8.34034493,2750.6,2750.5,0.4842]
[1763821780206,8.79434493,2750.6,2750.5,0.001]
[1763821780406,9.4305342,2750.6,2750.5,0.001]
[1763821780786,9.3065342,2750.6,2750.5,0.001]
[1763821781105,9.4305342,2750.6,2750.5,0.001]
[1763821781304,10.00111783,2750.6,2750.5,0.001]
[1763821781607,9.3354342,2750.6,2750.5,0.001]
[1763821784276,8.34034493,2750.6,2750.5,0.001]
[1763821784476,8.34034493,2750.6,2750.5,0.4842]
[1763821784778,8.34034493,2750.6,2750.5,0.9818]
[1763821785906,8.34034493,2750.6,2750.5,0.4842]
[1763821787374,8.8814342,2750.6,2750.5,0.001]
[1763821787891,9.3354342,2750.6,2750.5,0.001]
[1763821790313,10.2565252,2750.6,2750.5,0.001]
[1763821791327,10.8477612,2750.6,2750.5,0.001]
[1763821791697,11.45104199,2750.6,2750.5,0.001]
[1763821792434,14.76994699,2750.6,2750.5,0.001]
[1763821792734,11.55704199,2750.6,2750.5,0.001]
[1763821793229,11.98334199,2750.6,2750.5,0.001]
[1763821793528,11.4751612,2750.6,2750.5,0.001]
[1763821794268,10.7258212,2750.6,2750.5,0.001]
[1763821795230,27.38027199,2750.6,2750.5,0.001]
[1763821795431,6.90153264,2750.3,2750.2,0.001]
[1763821795632,9.95357653,2750.3,2750.2,0.001]
[1763821795834,9.13627653,2750.3,2750.2,0.001]
[1763821796036,9.63387653,2750.3,2750.2,0.4842]
[1763821796339,9.68557653,2750.3,2750.2,0.001]
[1763821796516,9.63387653,2750.3,2750.2,0.4842]
[1763821796835,9.68557653,2750.3,2750.2,0.001]
[1763821797040,10.17887653,2750.3,2750.2,0.001]
[1763821797806,9.68557653,2750.3,2750.2,0.001]
[1763821800027,9.63387653,2750.3,2750.2,0.001]
[1763821800551,9.12087653,2750.3,2750.2,0.9818]
[1763821800749,9.24487653,2750.3,2750.2,0.9818]
[1763821801054,9.29657653,2750.3,2750.2,0.001]
[1763821801255,9.29657653,2750.3,2749.9,0.001]
[1763821801256,1.31249664,2750.2,2749.9,0.001]
[1763821801558,17.72565307,2750.0,2749.9,0.001]
[1763821801716,18.39074234,2750.0,2749.9,0.001]
[1763821801922,16.80524234,2750.0,2749.9,0.001]
[1763821802130,17.92014234,2750.0,2749.9,0.001]
[1763821802456,12.21314934,2750.0,2749.9,0.001]
[1763821802656,13.58224587,2750.0,2749.9,0.001]
[1763821802965,7.3237196,2750.0,2749.9,0.9818]
[1763821803259,7.1997196,2750.0,2749.9,0.9818]
[1763821803453,5.95462307,2750.0,2749.9,0.4842]
[1763821803652,5.95462307,2750.0,2749.9,0.9818]
[1763821803843,5.83062307,2750.0,2749.9,0.9818]
[1763821804051,5.95462307,2750.0,2749.9,0.9818]
[1763821804857,5.83062307,2750.0,2749.9,0.9818]
[1763821805026,1.027104,2750.0,2749.9,0.9818]
[1763821805421,0.6216,2750.0,2749.9,0.9818]
[1763821805646,0.124,2750.0,2749.9,0.9818]
[1763821807850,0.405504,2750.5,2749.9,0.9818]
[1763821808069,0.405504,2750.5,2750.4,0.6574]
[1763821808248,1.43649664,2750.5,2750.4,0.6574]
[1763821808461,1.43649664,2750.5,2750.4,1.1249]
[1763821808983,1.31249664,2750.5,2750.4,1.1249]
[1763821809187,0.72868682,2750.5,2750.4,0.4605]
[1763821809351,0.405504,2750.4,2750.0,0.1969]
[1763821809554,6.49817664,2750.0,2749.9,0.001]
[1763821809752,8.78722079,2750.0,2749.6,0.001]
[1763821809960,8.9111358,2749.7,2749.6,0.001]
[1763821810180,9.57622507,2749.7,2749.6,0.001]
[1763821810347,1.03099264,2749.7,2749.6,0.4615]
[1763821810681,1.90399664,2749.7,2749.6,0.4615]
[1763821810985,5.65656822,2749.7,2749.6,0.929]
[1763821811763,6.22222504,2749.7,2749.6,0.4615]
[1763821812165,6.22222504,2749.7,2749.6,0.001]
[1763821812469,15.09628489,2749.7,2749.6,0.001]
[1763821812780,11.06088589,2749.7,2749.6,0.001]
[1763821813379,10.56888589,2749.7,2749.6,0.001]
[1763821814175,6.81631431,2749.7,2749.6,0.001]
[1763821814361,6.76331431,2749.7,2749.6,0.001]
[1763821814583,13.38363289,2749.7,2749.6,0.001]
[1763821815781,10.57328589,2749.7,2749.6,0.001]
[1763821815984,12.71081889,2749.7,2749.6,0.001]
[1763821816288,10.51588589,2749.7,2749.6,0.001]
[1763821816988,12.52012889,2749.7,2749.6,0.001]
[1763821817506,6.22222504,2749.7,2749.6,0.001]
[1763821817706,6.22222504,2749.7,2749.6,0.4615]
[1763821818490,13.15859589,2749.7,2749.6,0.001]
[1763821818676,12.89694589,2749.7,2749.6,0.001]
[1763821819300,10.57758589,2749.7,2749.6,0.001]
[1763821819592,12.61722289,2749.7,2749.6,0.001]
[1763821819890,12.89099589,2749.7,2749.6,0.001]
[1763821820094,10.57758589,2749.7,2749.6,0.001]
[1763821820294,12.83559589,2749.7,2749.6,0.001]
[1763821820710,13.78035389,2749.7,2749.6,0.001]
[1763821821105,0.405504,2749.4,2749.3,0.001]
[1763821821296,14.49640149,2749.4,2749.3,0.001]
[1763821821712,17.99188949,2749.4,2749.3,0.001]
[1763821821918,18.18878949,2749.4,2749.3,0.001]
[1763821822113,18.68078949,2749.4,2749.3,0.001]
[1763821822324,21.63278981,2749.4,2749.3,0.001]
[1763821822713,18.25105081,2749.4,2749.3,0.001]
[1763821823316,18.7592316,2749.4,2749.3,0.001]
[1763821823827,1.31249664,2749.2,2748.1,0.4675]
[1763821823994,1.31249664,2749.2,2748.0,0.001]
[1763821823995,8.8176398,2748.4,2748.0,0.001]
[1763821824194,0.90699264,2748.4,2748.0,0.001]
[1763821824391,0.90699264,2748.4,2748.3,0.4615]
[1763821824611,1.03099264,2748.4,2748.3,0.4615]
[1763821824816,1.03099264,2748.4,2748.3,0.929]
[1763821825025,0.90699264,2748.4,2748.3,0.929]
[1763821825239,1.03099264,2748.4,2748.3,0.929]
[1763821826291,4.78356422,2748.4,2748.3,0.929]
[1763821826509,5.26192064,2748.4,2748.3,0.929]
[1763821826988,5.66742464,2748.4,2748.3,0.929]
[1763821827191,9.47299622,2748.4,2748.3,0.001]
[1763821827417,5.66742464,2748.4,2748.3,0.001]
[1763821827693,9.96499622,2748.4,2748.3,0.001]
[1763821828031,17.78308122,2748.4,2748.3,0.001]
[1763821828252,23.02685722,2748.4,2748.3,0.001]
[1763821828553,12.04945122,2748.4,2748.3,0.001]
[1763821828751,12.59054049,2748.4,2748.3,0.001]
[1763821828938,13.08254049,2748.4,2748.3,0.001]
[1763821829253,14.26819249,2748.4,2748.3,0.001]
[1763821829466,8.46540491,2748.4,2748.3,0.001]
[1763821829877,12.70997649,2748.4,2748.3,0.001]
[1763821830316,10.50608549,2748.4,2748.3,0.001]
[1763821830523,18.87972528,2748.4,2748.3,0.001]
[1763821831425,29.05953328,2748.4,2748.3,0.001]
[1763821831955,29.05953328,2748.4,2748.0,0.001]
[1763821831956,13.65633564,2748.1,2748.0,0.001]
[1763821832160,19.07660279,2748.1,2748.0,0.001]
[1763821832466,20.14853506,2748.1,2748.0,0.001]
[1763821832673,15.37459606,2748.1,2748.0,0.001]
[1763821832873,2.78305721,2748.1,2748.0,0.4615]
[1763821833022,5.21096017,2748.1,2748.0,0.929]
[1763821833226,5.33496017,2748.1,2748.0,0.929]
[1763821833468,4.80545617,2748.1,2748.0,0.929]
[1763821833624,4.02246353,2748.1,2748.0,0.929]
[1763821833821,4.28207558,2748.1,2748.0,0.929]
[1763821834024,5.18906822,2748.1,2748.0,0.4615]
[1763821834227,5.80087504,2748.1,2748.0,0.929]
[1763821834530,5.80087504,2748.1,2748.0,0.4615]
[1763821835028,2.04830346,2748.1,2748.0,0.4615]
[1763821835249,1.31249664,2748.1,2748.0,0.929]
[1763821835759,1.03099264,2748.1,2748.0,0.929]
[1763821836760,1.43649664,2748.1,2748.0,0.4615]
[1763821837264,1.43649664,2748.1,2748.0,0.9456]
[1763821837760,0.90699264,2748.1,2748.0,0.9456]
[1763821837960,1.03099264,2748.1,2748.0,0.9456]
[1763821839427,0.9456,2748.7,2748.0,0.9456]
[1763821839635,5.02657486,2749.6,2748.6,0.6547]
[1763821839636,2.973459,2749.5,2748.6,0.6547]
[1763821839861,0.405504,2749.2,2748.6,0.6547]
[1763821840064,0.80000339,2749.4,2748.7,0.4836]
[1763821840274,0.124,2749.3,2749.1,0.6547]
[1763821840441,0.124,2749.3,2749.1,1.1383]
[1763821840762,0.124,2749.3,2749.2,0.4572]
[1763821840966,0.529504,2749.3,2749.2,0.4572]
[1763821841152,0.72792474,2749.3,2749.2,0.4572]
[1763821841469,0.405504,2749.2,2748.6,0.29749999]
[1763821841672,0.405504,2749.2,2748.6,0.78109999]
[1763821841843,0.405504,2749.2,2749.1,0.4572]
[1763821842474,0.405504,2749.1,2748.7,0.4836]
[1763821842634,0.405504,2748.9,2748.7,0.4836]
[1763821842836,0.405504,2748.7,2748.1,0.4836]
[1763821843066,0.1768,2748.8,2748.1,0.4836]
[1763821843267,0.124,2748.8,2748.1,0.4836]
[1763821843571,0.90699264,2748.7,2748.1,0.4836]
[1763821843738,1.01126075,2748.6,2748.1,0.58359999]
[1763821844376,1.01126075,2748.6,2748.5,0.4572]
[1763821845959,1.01126075,2748.6,2748.2,0.4836]
[1763821846274,1.01126075,2748.6,2748.0,0.001]
[1763821846888,1.01126075,2748.6,2748.0,0.4846]
[1763821847173,1.01126075,2748.6,2748.0,0.58459999]
[1763821847174,0.405504,2748.4,2748.0,0.58459999]
[1763821847556,0.405504,2748.4,2748.3,0.4572]
[1763821850376,0.405504,2748.4,2748.0,0.001]
[1763821850583,0.405504,2748.4,2748.3,0.4572]
[1763821852199,0.58459999,2748.4,2748.3,0.9408]
[1763821852395,0.124,2748.4,2748.3,1.04079999]
[1763821853262,0.124,2748.4,2748.3,0.9408]
[1763821853465,0.124,2748.4,2748.3,1.04079999]
[1763821854388,0.405504,2748.7,2748.3,1.04079999]
[1763821854590,0.405504,2748.7,2748.6,0.4572]
[1763821854789,1.30075366,2748.7,2748.6,0.4572]
[1763821855374,1.17675366,2748.7,2748.6,0.9408]
[1763821855574,0.529504,2748.7,2748.6,0.9408]
[1763821857499,0.124,2748.7,2748.6,0.9408]
[1763821859827,0.529504,2748.7,2748.6,0.4572]
[1763821860039,0.582304,2748.7,2748.1,0.4836]
[1763821860190,0.584304,2748.7,2748.1,0.4836]
[1763821860808,0.126,2748.7,2748.6,0.4572]
[1763821861010,0.126,2748.7,2748.4,0.09999999]
[1763821861291,0.126,2748.7,2748.6,0.4572]
[1763821861720,0.405504,2748.6,2748.1,0.09999999]
[1763821861936,0.405504,2748.6,2748.0,0.001]
[1763821862123,0.405504,2748.6,2748.0,0.4846]
[1763821862425,0.405504,2748.6,2748.5,0.4572]
[1763821862795,0.405504,2748.6,2748.2,0.4836]
[1763821862796,0.90699264,2748.5,2748.2,0.4836]
[1763821862993,4.66449752,2748.4,2748.3,0.09999999]
[1763821863428,0.90699264,2748.4,2748.3,1.04079999]
[1763821863629,1.03099264,2748.4,2748.3,1.04079999]
[1763821866540,0.90699264,2748.4,2748.3,1.04079999]
[1763821866727,1.03099264,2748.4,2748.3,1.04079999]
[1763821870429,0.90699264,2748.4,2748.3,1.04079999]
[1763821870659,0.002,2748.7,2748.6,0.09999999]
[1763821870960,0.126,2748.7,2748.6,0.55159999]
[1763821871136,0.126,2748.7,2748.6,0.4516]
[1763821871346,0.126,2748.7,2748.0,0.001]
[1763821871654,0.126,2748.7,2748.6,0.4516]
[1763821873640,0.6968965,2748.7,2748.6,0.4516]
[1763821873834,0.6968965,2748.7,2748.4,0.472]
[1763821874663,0.6968965,2748.7,2748.0,0.001]
[1763821874821,0.0582,2748.5,2748.1,0.472]
[1763821875664,0.0049,2748.2,2748.0,0.001]
[1763821875829,0.582904,2748.1,2748.0,0.001]
[1763821876660,0.124,2748.1,2748.0,0.9246]
[1763821876829,0.124,2748.1,2748.0,0.4526]
[1763821877323,0.124,2748.1,2748.0,0.9246]
[1763821877523,0.124,2748.1,2748.0,0.4526]
[1763821877952,0.124,2748.1,2748.0,0.9246]
[1763821878535,0.405504,2748.6,2748.0,0.9246]
[1763821878855,0.405504,2748.4,2748.0,0.9246]
[1763821879349,0.405504,2748.4,2748.0,0.4526]
[1763821879952,0.0582,2748.1,2748.0,0.001]
[1763821880152,0.124,2748.1,2748.0,0.473]
[1763821880325,0.124,2748.1,2748.0,1.1054]
[1763821880525,0.405504,2748.4,2748.0,1.1054]
[1763821880780,0.124,2748.3,2748.0,1.1054]
[1763821881488,0.529504,2748.3,2748.2,0.4516]
[1763821881671,0.7154648,2748.3,2748.2,0.4516]
[1763821882065,0.5914648,2748.3,2748.2,0.4516]
[1763821882399,0.124,2748.3,2748.2,0.9236]
[1763821882747,0.124,2748.3,2748.0,0.1818]
[1763821882748,3.93417164,2748.2,2748.0,0.001]
[1763821883049,4.7538147,2748.1,2748.0,0.001]
[1763821883360,2.4903357,2748.1,2748.0,0.001]
[1763821883555,4.65574696,2748.1,2748.0,0.001]
[1763821883783,3.48397994,2748.1,2748.0,0.001]
[1763821883975,7.234821,2748.1,2748.0,0.001]
[1763821884283,7.27041928,2748.1,2748.0,0.001]
[1763821884857,12.05640228,2748.1,2748.0,0.001]
[1763821885059,7.18303028,2748.1,2748.0,0.001]
[1763821885379,5.79354128,2748.1,2748.0,0.001]
[1763821885583,2.36864088,2748.1,2748.0,0.001]
[1763821885880,2.97534088,2748.1,2748.0,0.001]
[1763821886567,7.24144188,2748.1,2748.0,0.001]
[1763821886779,5.52072488,2748.1,2748.0,0.001]
[1763821887166,6.09184303,2748.1,2748.0,0.001]
[1763821887755,3.54645903,2748.1,2748.0,0.001]
[1763821888290,3.42245903,2748.1,2748.0,0.001]
[1763821888498,3.54645903,2748.1,2748.0,0.001]
[1763821890593,2.93975903,2748.1,2748.0,0.001]
[1763821890759,3.06375903,2748.1,2748.0,0.001]
[1763821890963,2.21602005,2748.1,2748.0,0.001]
[1763821891195,2.69872005,2748.1,2748.0,0.001]
[1763821891510,5.28115605,2748.1,2748.0,0.001]
[1763821891820,6.73226905,2748.1,2748.0,0.001]
[1763821891976,3.85220587,2748.1,2748.0,0.001]
[1763821892166,4.22229211,2748.1,2748.0,0.001]
[1763821892363,6.88259711,2748.1,2748.0,0.001]
[1763821892565,3.01306971,2748.1,2748.0,0.001]
[1763821892785,2.22022005,2748.1,2748.0,0.001]
[1763821893113,2.09622005,2748.1,2748.0,0.001]
[1763821893598,2.22022005,2748.1,2748.0,0.001]
[1763821894666,0.57111815,2748.1,2748.0,1.02459999]
[1763821894961,0.124,2748.1,2748.0,0.9246]
[1763821895191,0.124,2748.1,2748.0,1.02459999]
[1763821896907,0.002,2748.3,2748.0,1.02459999]
[1763821897113,0.002,2748.3,2748.2,0.77379999]
[1763821897405,0.126,2748.3,2748.2,0.4754]
[1763821897704,0.126,2748.3,2748.2,0.9751]
[1763821897910,0.126,2748.3,2748.2,1.07509999]
[1763821898225,0.126,2748.3,2748.2,0.9751]
[1763821899302,0.126,2748.3,2748.2,0.4754]
[1763821899903,0.405504,2748.2,2748.0,0.001]
[1763821900114,5.27312011,2748.1,2748.0,0.001]
[1763821900419,6.18687611,2748.1,2748.0,0.001]
[1763821902809,6.59238011,2748.1,2748.0,0.001]
[1763821903018,7.12901917,2748.1,2748.0,0.001]
[1763821903195,9.91438017,2748.1,2748.0,0.001]
[1763821903397,8.02210317,2748.1,2748.0,0.001]
[1763821903805,6.47626417,2748.1,2748.0,0.001]
[1763821904112,6.70226417,2748.1,2748.0,0.001]
[1763821905123,7.30226417,2748.1,2748.0,0.001]
[1763821905323,6.84816251,2748.1,2748.0,0.001]
[1763821905525,6.57716251,2748.1,2748.0,0.001]
[1763821906031,6.34116251,2748.1,2748.0,0.001]
[1763821906204,6.66593651,2748.1,2748.0,0.001]
[1763821907229,6.89193651,2748.1,2748.0,0.001]
[1763821907470,6.89193651,2748.1,2747.4,0.001]
[1763821907471,6.42713651,2748.1,2747.4,0.001]
[1763821907731,3.288673,2746.9,2746.1,0.1824]
[1763821907928,1.31249664,2746.6,2746.2,0.4997]
[1763821908117,0.405504,2746.6,2746.2,0.4997]
[1763821908620,0.405504,2746.7,2746.2,0.4997]
[1763821908847,0.405504,2746.4,2746.2,0.4997]
[1763821908997,0.529504,2746.3,2746.2,0.4997]
[1763821909399,0.529504,2746.3,2746.2,0.9814]
[1763821910318,1.386904,2746.3,2746.2,0.9814]
[1763821910510,1.1054,2746.3,2746.2,0.9814]
[1763821912030,1.6767133,2746.3,2746.2,0.9814]
[1763821912219,1.1054,2746.3,2746.2,0.9814]
[1763821914255,0.405504,2747.1,2746.2,0.9814]
[1763821914435,0.405504,2746.7,2746.3,0.4997]
[1763821914602,0.90699264,2747.0,2746.3,0.4997]
[1763821914807,2.70714403,2747.0,2746.9,0.4817]
[1763821915007,2.304326,2747.0,2746.9,0.4817]
[1763821915246,3.28112896,2747.0,2746.9,0.4817]
[1763821915431,4.6878216,2747.0,2746.9,0.4817]
[1763821916106,4.5638216,2747.0,2746.9,0.4817]
[1763821916311,2.5074956,2747.0,2746.9,0.4817]
[1763821916536,2.5074956,2747.0,2746.9,0.9814]
[1763821916718,1.9779916,2747.0,2746.9,0.9814]
[1763821917245,2.1019916,2747.0,2746.9,0.9814]
[1763821917446,1.03099264,2747.0,2746.9,0.9814]
[1763821917811,0.90699264,2747.0,2746.9,0.9814]
[1763821918011,1.03099264,2747.0,2746.9,0.9814]
[1763821918443,0.9814,2747.4,2746.9,0.9814]
[1763821918654,0.85189365,2748.0,2747.3,0.6641]
[1763821918829,0.9814,2747.7,2747.3,0.6641]
[1763821919028,0.9814,2747.7,2747.3,1.1638]
[1763821919029,0.405504,2747.6,2747.3,1.1638]
[1763821919241,0.124,2747.5,2747.4,0.4997]
[1763821919645,0.124,2747.5,2747.4,0.9814]
[1763821920546,0.405504,2747.6,2747.4,0.9814]
[1763821920887,0.90699264,2747.9,2747.5,0.9814]
[1763821921021,0.002,2748.1,2747.8,0.4817]
[1763821921225,0.002,2748.1,2748.0,0.4817]
[1763821921545,0.126,2748.1,2748.0,0.4817]
[1763821921750,0.002,2748.1,2748.0,0.9814]
[1763821922065,0.126,2748.1,2748.0,0.9814]
[1763821922277,0.002,2748.1,2748.0,0.9814]
[1763821922640,0.126,2748.1,2748.0,0.9814]
[1763821922958,0.002,2748.1,2748.0,0.9814]
[1763821923132,0.122,2748.1,2748.0,0.9814]